Workbook

Sheet Projected Cash Flows
B1: INSTRUCTIONS: Do Not fill in any information. Leave this tab blank
B3: FIVE YEAR PROFORMA AND INTERNAL RATE OF RETURN
B5: Description | C5: ='Annualized Revenue Operating'!D5 -> Jan - Aug 2025 T-8 Annualized | D5: Year 1 | E5: Year 2 | F5: Year 3 | G5: Year 4 | H5: Year 5
B6: Blended $/SF Rental Rates | C6: =(C8/(Assumptions!$C$6+Assumptions!$C$7+Assumptions!$C$8))/12 -> 0.897470278 | D6: =(D8/(Assumptions!$C$6+Assumptions!$C$7+Assumptions!$C$8))/12 -> 0.9423437919 | E6: =(E8/(Assumptions!$C$6+Assumptions!$C$7+Assumptions!$C$8))/12 -> 0.9894609815 | F6: =(F8/(Assumptions!$C$6+Assumptions!$C$7+Assumptions!$C$8))/12 -> 1.038934031 | G6: =(G8/(Assumptions!$C$6+Assumptions!$C$7+Assumptions!$C$8))/12 -> 1.090880732 | H6: =(H8/(Assumptions!$C$6+Assumptions!$C$7+Assumptions!$C$8))/12 -> 1.145424769 | J6: YoY % Growth | P6: Achieved Rate Growth Analysis
B7: Achieved $/SF Rental Rates | C7: =Assumptions!I7 -> 0.8582450096 | D7: =P9 -> 0.8376389261 | E7: =Q9 -> 0.934490927 | F7: =R9 -> 1.038934031 | G7: =S9 -> 1.151485217 | H7: =T9 -> 1.209059478
B8: =+'Annualized Revenue Operating'!B7 -> Potential Gross Rental Income | C8: ='Annualized Revenue Operating'!D7 -> 361440 | D8: =+C8*(1+Assumptions!$C$9) -> 379512 | E8: =+D8*(1+Assumptions!$C$9) -> 398487.6 | F8: =+E8*(1+Assumptions!$C$10) -> 418411.98 | G8: =+F8*(1+Assumptions!$C$10) -> 439332.579 | H8: =+G8*(1+Assumptions!$C$10) -> 461299.208 | J8: =(D8-C8)/C8 -> 0.05 | K8: =(E8-D8)/D8 -> 0.05 | L8: =(F8-E8)/E8 -> 0.05 | M8: =(G8-F8)/F8 -> 0.05 | N8: =(H8-G8)/G8 -> 0.05 | P8: =D10/(Assumptions!$C$6*'Annualized Revenue Operating'!P25) -> 10.05166711 | Q8: =E10/(Assumptions!$C$6*'Annualized Revenue Operating'!P26) -> 11.21389112 | R8: =F10/(Assumptions!$C$6*'Annualized Revenue Operating'!P27) -> 12.46720837 | S8: =G10/(Assumptions!$C$6*'Annualized Revenue Operating'!P28) -> 13.81782261 | T8: =H10/(Assumptions!$C$6*'Annualized Revenue Operating'!P29) -> 14.50871374
B9: =+'Annualized Revenue Operating'!B8 -> Vacancy, Discounts & Credit Loss | C9: ='Annualized Revenue Operating'!D8 -> -86448 | D9: =+D10-D8 -> -75902.4 | E9: =+E10-E8 -> -59773.14 | F9: =+F10-F8 -> -41841.198 | G9: =+G10-G8 -> -21966.62895 | H9: =+H10-H8 -> -23064.9604 | P9: =P8/12 -> 0.8376389261 | Q9: =Q8/12 -> 0.934490927 | R9: =R8/12 -> 1.038934031 | S9: =S8/12 -> 1.151485217 | T9: =T8/12 -> 1.209059478
B10: =+'Annualized Revenue Operating'!B9 -> Gross Rental Income | C10: =+'Annualized Revenue Operating'!D9 -> 274992 | D10: =+D8*Assumptions!$C$12 -> 303609.6 | E10: =+E8*Assumptions!$C$13 -> 338714.46 | F10: =+F8*Assumptions!$C$14 -> 376570.782 | G10: =+G8*Assumptions!$C$15 -> 417365.9501 | H10: =+H8*Assumptions!$C$16 -> 438234.2476 | J10: =(D10-C10)/C10 -> 0.1040670274 | K10: =(E10-D10)/D10 -> 0.115625 | L10: =(F10-E10)/E10 -> 0.1117647059 | M10: =(G10-F10)/F10 -> 0.1083333333 | N10: =(H10-G10)/G10 -> 0.05
B11: =+'Annualized Revenue Operating'!B10 -> Late/Admin/Other Fee Income | C11: =+'Annualized Revenue Operating'!D10 -> 0 | D11: =+C11*(1+Assumptions!$C$10) -> 0 | E11: =+D11*(1+Assumptions!$C$10) -> 0 | F11: =+E11*(1+Assumptions!$C$10) -> 0 | G11: =+F11*(1+Assumptions!$C$10) -> 0 | H11: =+G11*(1+Assumptions!$C$10) -> 0
B12: =+'Annualized Revenue Operating'!B11 -> Retail Product Sales (locks, boxes, etc.) | C12: =+'Annualized Revenue Operating'!D11 -> 0 | D12: =+C12*(1+Assumptions!$C$10) -> 0 | E12: =+D12*(1+Assumptions!$C$10) -> 0 | F12: =+E12*(1+Assumptions!$C$10) -> 0 | G12: =+F12*(1+Assumptions!$C$10) -> 0 | H12: =+G12*(1+Assumptions!$C$10) -> 0
B13: =+'Annualized Revenue Operating'!B12 -> Tenant Insurance | C13: =+'Annualized Revenue Operating'!D12 -> 0 | D13: =((('Annualized Revenue Operating'!N25*'Annualized Revenue Operating'!N33)*'Annualized Revenue Operating'!N32)*'Annualized Revenue Operating'!N31)*12 -> 3734.64 | E13: =((('Annualized Revenue Operating'!N26*'Annualized Revenue Operating'!N34)*'Annualized Revenue Operating'!N32)*'Annualized Revenue Operating'!N31)*12 -> 5601.96 | F13: =((('Annualized Revenue Operating'!N27*'Annualized Revenue Operating'!N35)*'Annualized Revenue Operating'!N32)*'Annualized Revenue Operating'!N31)*12 -> 6535.62 | G13: =((('Annualized Revenue Operating'!N28*'Annualized Revenue Operating'!N36)*'Annualized Revenue Operating'!N32)*'Annualized Revenue Operating'!N31)*12 -> 7469.28 | H13: =+G13*(1+Assumptions!$C$10) -> 7842.744
B14: =+'Annualized Revenue Operating'!B13 -> Other Revenue | C14: =+'Annualized Revenue Operating'!D13 -> 0 | D14: =+C14*(1+Assumptions!$C$10) -> 0 | E14: =+D14*(1+Assumptions!$C$10) -> 0 | F14: =+E14*(1+Assumptions!$C$10) -> 0 | G14: =+F14*(1+Assumptions!$C$10) -> 0 | H14: =+G14*(1+Assumptions!$C$10) -> 0
B15: =+'Annualized Revenue Operating'!B14 -> Effective Gross Revenue | C15: =SUM(C10:C14) -> 274992 | D15: 307344.24 | E15: 344316.42 | F15: 383106.402 | G15: 424835.2301 | H15: 446076.9916 | J15: =(D15-C15)/C15 -> 0.1176479316 | K15: =(E15-D15)/D15 -> 0.1202956659 | L15: =(F15-E15)/E15 -> 0.1126579499 | M15: =(G15-F15)/F15 -> 0.1089222937 | N15: =(H15-G15)/G15 -> 0.05
C17: ='Annualized Revenue Operating'!D16 -> Jan - Aug 2025 T-8 Annualized
B18: Operating Expenses
B19: =+'Annualized Revenue Operating'!B18 -> Marketing & Advertising | C19: =+'Annualized Revenue Operating'!D18 -> 3000 | D19: =+C19*(1+Assumptions!$C$19) -> 3060 | E19: =+D19*(1+Assumptions!$C$19) -> 3121.2 | F19: =+E19*(1+Assumptions!$C$19) -> 3183.624 | G19: =+F19*(1+Assumptions!$C$19) -> 3247.29648 | H19: =+G19*(1+Assumptions!$C$19) -> 3312.24241
B20: =+'Annualized Revenue Operating'!B19 -> Retail Product Costs | C20: =+'Annualized Revenue Operating'!D19 -> 0 | D20: =D12*0.5 -> 0 | E20: =E12*0.5 -> 0 | F20: =F12*0.5 -> 0 | G20: =G12*0.5 -> 0 | H20: =H12*0.5 -> 0
B21: =+'Annualized Revenue Operating'!B20 -> Bank & Credit Card Charges | C21: =+'Annualized Revenue Operating'!D20 -> 4399.872 | D21: =D15*'Annualized Revenue Operating'!$N$15*'Annualized Revenue Operating'!$N$21 -> 4917.50784 | E21: =E15*'Annualized Revenue Operating'!$N$15*'Annualized Revenue Operating'!$N$21 -> 5509.06272 | F21: =F15*'Annualized Revenue Operating'!$N$15*'Annualized Revenue Operating'!$N$21 -> 6129.702432 | G21: =G15*'Annualized Revenue Operating'!$N$15*'Annualized Revenue Operating'!$N$21 -> 6797.363681 | H21: =H15*'Annualized Revenue Operating'!$N$15*'Annualized Revenue Operating'!$N$21 -> 7137.231865
B22: =+'Annualized Revenue Operating'!B21 -> Insurance | C22: =+'Annualized Revenue Operating'!D21 -> 12296 | D22: =+C22*(1+Assumptions!$C$19) -> 12541.92 | E22: =+D22*(1+Assumptions!$C$19) -> 12792.7584 | F22: =+E22*(1+Assumptions!$C$19) -> 13048.61357 | G22: =+F22*(1+Assumptions!$C$19) -> 13309.58584 | H22: =+G22*(1+Assumptions!$C$19) -> 13575.77756
B23: =+'Annualized Revenue Operating'!B22 -> Dues/Subscriptions & Licenses/Permits | C23: =+'Annualized Revenue Operating'!D22 -> 1632 | D23: =+C23*(1+Assumptions!$C$19) -> 1664.64 | E23: =+D23*(1+Assumptions!$C$19) -> 1697.9328 | F23: =+E23*(1+Assumptions!$C$19) -> 1731.891456 | G23: =+F23*(1+Assumptions!$C$19) -> 1766.529285 | H23: =+G23*(1+Assumptions!$C$19) -> 1801.859871
B24: =+'Annualized Revenue Operating'!B23 -> Off-Site Management Fees | C24: =+'Annualized Revenue Operating'!D23 -> 0 | D24: =IF(C24=0, 0, IF(D15 * Assumptions!$C$20 > 24000, D15 * Assumptions!$C$20, 24000)) -> 0 | E24: =IF(D24=0, 0, IF(E15 * Assumptions!$C$20 > 24000, E15 * Assumptions!$C$20, 24000)) -> 0 | F24: =IF(E24=0, 0, IF(F15 * Assumptions!$C$20 > 24000, F15 * Assumptions!$C$20, 24000)) -> 0 | G24: =IF(F24=0, 0, IF(G15 * Assumptions!$C$20 > 24000, G15 * Assumptions!$C$20, 24000)) -> 0 | H24: =IF(G24=0, 0, IF(H15 * Assumptions!$C$20 > 24000, H15 * Assumptions!$C$20, 24000)) -> 0
B25: =+'Annualized Revenue Operating'!B24 -> Office/Site Supplies | C25: =+'Annualized Revenue Operating'!D24 -> 1974 | D25: =+C25*(1+Assumptions!$C$19) -> 2013.48 | E25: =+D25*(1+Assumptions!$C$19) -> 2053.7496 | F25: =+E25*(1+Assumptions!$C$19) -> 2094.824592 | G25: =+F25*(1+Assumptions!$C$19) -> 2136.721084 | H25: =+G25*(1+Assumptions!$C$19) -> 2179.455506
B26: =+'Annualized Revenue Operating'!B25 -> Postage & Handling | C26: =+'Annualized Revenue Operating'!D25 -> 500 | D26: =+C26*(1+Assumptions!$C$19) -> 510 | E26: =+D26*(1+Assumptions!$C$19) -> 520.2 | F26: =+E26*(1+Assumptions!$C$19) -> 530.604 | G26: =+F26*(1+Assumptions!$C$19) -> 541.21608 | H26: =+G26*(1+Assumptions!$C$19) -> 552.0404016
B27: =+'Annualized Revenue Operating'!B26 -> On-Site Management & Payroll | C27: =+'Annualized Revenue Operating'!D26 -> 24000 | D27: =+C27*(1+Assumptions!$C$19) -> 24480 | E27: =+D27*(1+Assumptions!$C$19) -> 24969.6 | F27: =+E27*(1+Assumptions!$C$19) -> 25468.992 | G27: =+F27*(1+Assumptions!$C$19) -> 25978.37184 | H27: =+G27*(1+Assumptions!$C$19) -> 26497.93928
B28: =+'Annualized Revenue Operating'!B27 -> Repairs & Maintenance | C28: =+'Annualized Revenue Operating'!D27 -> 677 | D28: =+C28*(1+Assumptions!$C$19) -> 690.54 | E28: =+D28*(1+Assumptions!$C$19) -> 704.3508 | F28: =+E28*(1+Assumptions!$C$19) -> 718.437816 | G28: =+F28*(1+Assumptions!$C$19) -> 732.8065723 | H28: =+G28*(1+Assumptions!$C$19) -> 747.4627038
B29: =+'Annualized Revenue Operating'!B28 -> Real Estate Taxes | C29: =+'Annualized Revenue Operating'!D28 -> 12866 | D29: =+C29*(1+Assumptions!$C$19) -> 13123.32 | E29: =D29*150% -> 19684.98 | F29: =+E29*(1+Assumptions!$C$19) -> 20078.6796 | G29: =+F29*(1+Assumptions!$C$19) -> 20480.25319 | H29: =+G29*(1+Assumptions!$C$19) -> 20889.85826
B30: =+'Annualized Revenue Operating'!B29 -> Telephone & Internet | C30: =+'Annualized Revenue Operating'!D29 -> 2874 | D30: =+C30*(1+Assumptions!$C$19) -> 2931.48 | E30: =+D30*(1+Assumptions!$C$19) -> 2990.1096 | F30: =+E30*(1+Assumptions!$C$19) -> 3049.911792 | G30: =+F30*(1+Assumptions!$C$19) -> 3110.910028 | H30: =+G30*(1+Assumptions!$C$19) -> 3173.128228
B31: =+'Annualized Revenue Operating'!B30 -> Utilities | C31: =+'Annualized Revenue Operating'!D30 -> 1532 | D31: =+C31*(1+Assumptions!$C$19) -> 1562.64 | E31: =+D31*(1+Assumptions!$C$19) -> 1593.8928 | F31: =+E31*(1+Assumptions!$C$19) -> 1625.770656 | G31: =+F31*(1+Assumptions!$C$19) -> 1658.286069 | H31: =+G31*(1+Assumptions!$C$19) -> 1691.451791
B32: =+'Annualized Revenue Operating'!B31 -> Other Expenses-
B33: =+'Annualized Revenue Operating'!B32 -> Landscaping/Snow Removal | C33: =+'Annualized Revenue Operating'!D32 -> 1500 | D33: =+C33*(1+Assumptions!$C$19) -> 1530 | E33: =+D33*(1+Assumptions!$C$19) -> 1560.6 | F33: =+E33*(1+Assumptions!$C$19) -> 1591.812 | G33: =+F33*(1+Assumptions!$C$19) -> 1623.64824 | H33: =+G33*(1+Assumptions!$C$19) -> 1656.121205
B34: =+'Annualized Revenue Operating'!B33 -> Software | C34: =+'Annualized Revenue Operating'!D33 -> 2400 | D34: =+C34*(1+Assumptions!$C$19) -> 2448 | E34: =+D34*(1+Assumptions!$C$19) -> 2496.96 | F34: =+E34*(1+Assumptions!$C$19) -> 2546.8992 | G34: =+F34*(1+Assumptions!$C$19) -> 2597.837184 | H34: =+G34*(1+Assumptions!$C$19) -> 2649.793928
B35: =+'Annualized Revenue Operating'!B34 -> Trash Removal | C35: =+'Annualized Revenue Operating'!D34 -> 1800 | D35: =+C35*(1+Assumptions!$C$19) -> 1836 | E35: =+D35*(1+Assumptions!$C$19) -> 1872.72 | F35: =+E35*(1+Assumptions!$C$19) -> 1910.1744 | G35: =+F35*(1+Assumptions!$C$19) -> 1948.377888 | H35: =+G35*(1+Assumptions!$C$19) -> 1987.345446
B36: =+'Annualized Revenue Operating'!B35 -> Outside Services - Fire, Pest, Security, etc. | C36: =+'Annualized Revenue Operating'!D35 -> 2888 | D36: =+C36*(1+Assumptions!$C$19) -> 2945.76 | E36: =+D36*(1+Assumptions!$C$19) -> 3004.6752 | F36: =+E36*(1+Assumptions!$C$19) -> 3064.768704 | G36: =+F36*(1+Assumptions!$C$19) -> 3126.064078 | H36: =+G36*(1+Assumptions!$C$19) -> 3188.58536
B37: =+'Annualized Revenue Operating'!B36 -> 0 | C37: =+'Annualized Revenue Operating'!D36 -> 0 | D37: =+C37*(1+Assumptions!$C$19) -> 0 | E37: =+D37*(1+Assumptions!$C$19) -> 0 | F37: =+E37*(1+Assumptions!$C$19) -> 0 | G37: =+F37*(1+Assumptions!$C$19) -> 0 | H37: =+G37*(1+Assumptions!$C$19) -> 0
B41: =+'Annualized Revenue Operating'!B41 -> Total Operating Expenses | C41: =SUM(C19:C40) -> 74338.872 | D41: 76255.28784 | E41: 84572.79192 | F41: 86774.70622 | G41: 89055.26754 | H41: 91040.2938
B42: Expense Ratio | C42: =C41/C15 -> 0.2703310351 | D42: 0.2481103529 | E42: 0.245625207 | F42: 0.2265028874 | G42: 0.2096230756 | H42: 0.2040909877 | J42: =(D41-C41)/C41 -> 0.02577945815 | K42: =(E41-D41)/D41 -> 0.1090744565 | L42: =(F41-E41)/E41 -> 0.02603572906 | M42: =(G41-F41)/F41 -> 0.02628140646 | N42: =(H41-G41)/G41 -> 0.02228982424
B43: =+'Annualized Revenue Operating'!B43 -> Capital Reserves | C43: =+'Annualized Revenue Operating'!C43 -> 0 | D43: =+Assumptions!C6*Assumptions!C21 -> 3356.1 | E43: =+D43*(1+Assumptions!$C$19) -> 3423.222 | F43: =+E43*(1+Assumptions!$C$19) -> 3491.68644 | G43: =+F43*(1+Assumptions!$C$19) -> 3561.520169 | H43: =+G43*(1+Assumptions!$C$19) -> 3632.750572
B44: =+'Annualized Revenue Operating'!B44 -> Net Operating Cash Flow | C44: =+C15-C41-C43 -> 200653.128 | D44: 227732.8522 | E44: 256320.4061 | F44: 292840.0093 | G44: 332218.4423 | H44: 351403.9472
J45: =(D44-C44)/C44 -> 0.1349578969 | K45: =(E44-D44)/D44 -> 0.1255310933 | L45: =(F44-E44)/E44 -> 0.1424763788 | M45: =(G44-F44)/F44 -> 0.1344708091 | N45: =(H44-G44)/G44 -> 0.05774966827
B47: Unleveraged Financial Summary | D47: Year 1 | E47: Year 2 | F47: Year 3 | G47: Year 4 | H47: Year 5
B49: Net Operating Cash Flow | D49: =+D44 -> 227732.8522 | E49: =+E44 -> 256320.4061 | F49: =+F44 -> 292840.0093 | G49: =+G44 -> 332218.4423 | H49: =+H44 -> 351403.9472
B50: Acquisition | C50: =-Assumptions!F24 -> -2866473.257
B51: Residual Value Year 5 | H51: =+H49/Assumptions!C25 -> 5406214.572
B53: Total Cash Flow Before Taxes | C53: =SUM(C49:C52) -> -2866473.257 | D53: =SUM(D47:D52) -> 227732.8522 | E53: =SUM(E47:E52) -> 256320.4061 | F53: =SUM(F47:F52) -> 292840.0093 | G53: =SUM(G47:G52) -> 332218.4423 | H53: =SUM(H47:H52) -> 5757618.519
B55: Return on Investment | D55: =+D53/-$C53 -> 0.07944705278 | E55: =+E53/-$C53 -> 0.08942012818 | F55: =+F53/-$C53 -> 0.1021603842 | G55: =+G53/-$C53 -> 0.1158979738 | H55: =(+H53+C53)/-$C53 -> 1.008607094
B57: Unleveraged IRR | F57: Unleveraged IRR | H57: =+IRR(C53:H53) -> 0.2135303281
B59: Leveraged Financial Summary | D59: Year 1 | E59: Year 2 | F59: Year 3 | G59: Year 4 | H59: Year 5
B61: Net Operating Cash Flow | D61: =+D49 -> 227732.8522 | E61: =+E49 -> 256320.4061 | F61: =+F49 -> 292840.0093 | G61: =+G49 -> 332218.4423 | H61: =+H49 -> 351403.9472
B62: Acquisition | C62: =-Assumptions!F24 -> -2866473.257
B63: Loan Principal | C63: =+Assumptions!F26 -> 1719883.954
B64: Loan Origination Fees and Costs | C64: =-Assumptions!F27 -> -34397.67909
B65: Debt Service (Principal and Interest) | D65: =-IF(Assumptions!I30<1.9,Assumptions!E35*1,IF(Assumptions!I30>1.9,Assumptions!C35*1)) -> -94593.61749 | E65: =-Assumptions!C35 -> -126160.8696 | F65: =E65 -> -126160.8696 | G65: =F65 -> -126160.8696 | H65: =G65 -> -126160.8696
B66: Residual Value Year 5 | H66: =+H61/Assumptions!C25 -> 5406214.572
B67: Residual Remaining Loan Value | H67: =-Assumptions!C37 -> -1569234.742
B69: Total Cash Flow Before Taxes | C69: =SUM(C59:C68) -> -1180986.982 | D69: 133139.2347 | E69: 130159.5365 | F69: 166679.1397 | G69: 206057.5727 | H69: 4062222.907
B71: Return on Investment | D71: =+D69/-$C69 -> 0.112735565 | E71: =+E69/-$C69 -> 0.1102125074 | F71: =+F69/-$C69 -> 0.141135459 | G71: =+G69/-$C69 -> 0.1744791229 | H71: =(+H69+C69)/-$C69 -> 2.439684746
B73: Leveraged IRR | F73: Leveraged IRR | H73: =+IRR(C69:H69) -> 0.3564902055
B75: DSCR | D75: =-D44/D65 -> 2.407486448 | E75: =-E44/E65 -> 2.031694985 | F75: =-F44/F65 -> 2.321163529 | G75: =-G44/G65 -> 2.633292267 | H75: =-H44/H65 -> 2.785364022
B76: Debt Yield | D76: =D44/$C$63 -> 0.1324117546 | E76: =E44/$C$63 -> 0.149033547 | F76: 0.1702673071 | G76: 0.1931632896 | H76: 0.2043184055

Sheet Annualized Revenue Operating
B1: INSTRUCTIONS: FILL IN Items highlighted in YELLOW
B3: ANNUALIZED REVENUE AND OPERATING EXPENSES
B5: Description | C5: Jan - Aug 2025 T-8 Annualized | D5: Jan - Aug 2025 T-8 Annualized
B6: Revenue
B7: Potential Gross Rental Income | C7: =Assumptions!C17+Assumptions!C18 -> 361440 | D7: =C7 -> 361440
B8: Vacancy, Discounts & Credit Loss | C8: =-(C7-C9) -> -86448 | D8: =-(D7-D9) -> -86448
B9: Gross Rental Income | C9: =(183328)/8*12 -> 274992 | D9: =C9 -> 274992 | F9: =177328/8 -> 22166
B10: Late/Admin/Other Fee Income | C10: 0 | D10: =C10 -> 0 | F10: =24166*8 -> 193328
B11: Retail Product Sales (locks, boxes, etc.) | C11: 0 | D11: =C11 -> 0
B12: Tenant Insurance | C12: 0 | D12: =C12 -> 0
B13: Other Revenue | C13: 0 | D13: =C13 -> 0
B14: Effective Gross Revenue | C14: =SUM(C9:C13) -> 274992 | D14: =SUM(D9:D13) -> 274992
N15: =N19/N20 -> 0.8
C16: Jan - Aug 2025 T-8 Annualized | D16: Jan - Aug 2025 T-8 Annualized
B17: Operating Expenses | F17: Expenses Excluded: | L17: Additional Inputs
B18: Marketing & Advertising | C18: 0 | D18: 3000 | F18: Deposit Refun ds | J18: 884 | L18: Credit Card
B19: Retail Product Costs | C19: 0 | D19: 0 | L19: Revenue from Credit Card | N19: 80
B20: Bank & Credit Card Charges | C20: 0 | D20: =D9*N15*N21 -> 4399.872 | L20: Gross Revenue | N20: 100
B21: Insurance | C21: =8197/8*12 -> 12295.5 | D21: 12296 | L21: Credit Card Fee | N21: 0.02
B22: Dues/Subscriptions & Licenses/Permits | C22: =1088/8*12 -> 1632 | D22: 1632
B23: Off-Site Management Fees | C23: 0 | D23: 0 | L23: Insurance - If Not Present
B24: Office/Site Supplies | C24: =(29+1287)/8*12 -> 1974 | D24: 1974 | L24: Current Occupied Units | N24: 221
B25: Postage & Handling | C25: 0 | D25: 500 | L25: Year 1 Occupied Units | N25: =$N$30*P25 -> 239.4 | P25: 0.9
B26: On-Site Management & Payroll | C26: =(270+3145)/8*12 -> 5122.5 | D26: 24000 | L26: Year 2 Occupied Units | N26: =$N$30*P26 -> 239.4 | P26: 0.9
B27: Repairs & Maintenance | C27: =451/8*12 -> 676.5 | D27: 677 | L27: Year 3 Occupied Units | N27: 239.4 | P27: 0.9
B28: Real Estate Taxes | C28: =(8577)/8*12 -> 12865.5 | D28: 12866 | L28: Year 4 Occupied Units | N28: 239.4 | P28: 0.9
B29: Telephone & Internet | C29: =3916/8*12 -> 5874 | D29: 2874 | L29: Year 5 Occupied Units | N29: 239.4 | P29: 0.9
B30: Utilities | C30: =(439+479+103)/8*12 -> 1531.5 | D30: 1532 | F30: Total | J30: =SUM(J18:J28) -> 884 | L30: Total Units | N30: =Assumptions!P14 -> 266
B31: Other Expenses- | L31: Percentage Paid to Owner | N31: 0.5
B32: Landscaping/Snow Removal | C32: 0 | D32: 1500 | J32: =J30+C41 -> 45743 | L32: Tenant Insurance Policy $ | N32: 13
B33: Software | C33: 0 | D33: 2400 | L33: Year 1 | N33: 0.2
B34: Trash Removal | C34: 0 | D34: 1800 | L34: Year 2 | N34: 0.3
B35: Outside Services - Fire, Pest, Security, etc. | C35: =(245+1680)/8*12 -> 2887.5 | D35: 2888 | L35: Year 3 | N35: 0.35
L36: Year 4 & 5 | N36: 0.4
B41: Total Operating Expenses | C41: =SUM(C18:C39) -> 44859 | D41: =SUM(D18:D40) -> 74338.872
B42: Expense Ratio | C42: =C41/C14 -> 0.1631283819 | D42: =D41/D14 -> 0.2703310351
B43: Capital Reserves | C43: 0 | D43: 0
B44: Net Operating Cash Flow | C44: =C14-C41-C43 -> 230133 | D44: =D14-D41-D43 -> 200653.128

Sheet Assumptions
B1: INSTRUCTIONS: FILL IN Items highlighted in YELLOW
B3: ASSUMPTIONS | H3: Achieved Rate Analysis | L3: Unit Type | M3: W | N3: L | O3: SF | P3: # | Q3: RSF | R3: $ | S3: M | T3: A
L4: ='Unit Mix'!A3 -> Storage | M4: ='Unit Mix'!B3 -> 5 | N4: ='Unit Mix'!C3 -> 5 | O4: ='Unit Mix'!D3 -> 25 | P4: ='Unit Mix'!E3 -> 1 | Q4: ='Unit Mix'!F3 -> 25 | R4: ='Unit Mix'!G3 -> 47 | S4: ='Unit Mix'!H3 -> 47 | T4: ='Unit Mix'!I3 -> 564
B5: Operating Assumptions | E5: Key Metrics | H5: Occupied SF | I5: =(C6+C7+C8)*F7 -> 26701 | L5: ='Unit Mix'!A4 -> Storage | M5: ='Unit Mix'!B4 -> 9 | N5: ='Unit Mix'!C4 -> 6 | O5: ='Unit Mix'!D4 -> 54 | P5: ='Unit Mix'!E4 -> 9 | Q5: ='Unit Mix'!F4 -> 486 | R5: ='Unit Mix'!G4 -> 63 | S5: ='Unit Mix'!H4 -> 567 | T5: ='Unit Mix'!I4 -> 6804
B6: Storage Square Footage | C6: =Q13 -> 33561 | E6: Current Unit Occupancy | F6: ='Annualized Revenue Operating'!N24/'Annualized Revenue Operating'!N30 -> 0.8308270677 | H6: Achieved Rate Annual | I6: ='Annualized Revenue Operating'!D9/Assumptions!I5 -> 10.29894011 | L6: ='Unit Mix'!A5 -> Storage | M6: ='Unit Mix'!B5 -> 10 | N6: ='Unit Mix'!C5 -> 6 | O6: ='Unit Mix'!D5 -> 60 | P6: ='Unit Mix'!E5 -> 57 | Q6: ='Unit Mix'!F5 -> 3420 | R6: ='Unit Mix'!G5 -> 68 | S6: ='Unit Mix'!H5 -> 3876 | T6: ='Unit Mix'!I5 -> 46512
B7: RV/Boat/Parking Square Footage | C7: 0 | E7: Current SF Occupancy | F7: =26701/Q14 -> 0.7955960788 | H7: Achieved Rate Monthly | I7: =I6/12 -> 0.8582450096 | L7: ='Unit Mix'!A6 -> Storage | M7: ='Unit Mix'!B6 -> 10 | N7: ='Unit Mix'!C6 -> 10 | O7: ='Unit Mix'!D6 -> 100 | P7: ='Unit Mix'!E6 -> 1 | Q7: ='Unit Mix'!F6 -> 100 | R7: ='Unit Mix'!G6 -> 89 | S7: ='Unit Mix'!H6 -> 89 | T7: ='Unit Mix'!I6 -> 1068
B8: Warehouse/Office Square Footage | C8: 0 | E8: Current Economic Occupancy | F8: ='Annualized Revenue Operating'!D9/'Annualized Revenue Operating'!D7 -> 0.7608233732 | L8: ='Unit Mix'!A7 -> Storage | M8: ='Unit Mix'!B7 -> 10 | N8: ='Unit Mix'!C7 -> 12 | O8: ='Unit Mix'!D7 -> 120 | P8: ='Unit Mix'!E7 -> 69 | Q8: ='Unit Mix'!F7 -> 8280 | R8: ='Unit Mix'!G7 -> 100 | S8: ='Unit Mix'!H7 -> 6900 | T8: ='Unit Mix'!I7 -> 82800
B9: Year 1 Annual Rate Increases | C9: 0.05 | L9: ='Unit Mix'!A8 -> Storage | M9: ='Unit Mix'!B8 -> 10 | N9: ='Unit Mix'!C8 -> 15 | O9: ='Unit Mix'!D8 -> 150 | P9: ='Unit Mix'!E8 -> 3 | Q9: ='Unit Mix'!F8 -> 450 | R9: ='Unit Mix'!G8 -> 147 | S9: ='Unit Mix'!H8 -> 441 | T9: ='Unit Mix'!I8 -> 5292
B10: Year 2-5 Annual Rate Increases | C10: 0.05 | E10: Storage $/SF Rates | F10: =(C17/C6)/12 -> 0.897470278 | L10: ='Unit Mix'!A9 -> Storage | M10: ='Unit Mix'!B9 -> 8 | N10: ='Unit Mix'!C9 -> 20 | O10: ='Unit Mix'!D9 -> 160 | P10: ='Unit Mix'!E9 -> 110 | Q10: ='Unit Mix'!F9 -> 17600 | R10: ='Unit Mix'!G9 -> 140 | S10: ='Unit Mix'!H9 -> 15400 | T10: ='Unit Mix'!I9 -> 184800
B11: Average Economic Occupancy Percentage | E11: Rv/Boat/Parking $/SF Rates | F11: =IFERROR((C18/C7)/12, "-") -> - | L11: ='Unit Mix'!A10 -> Storage | M11: ='Unit Mix'!B10 -> 10 | N11: ='Unit Mix'!C10 -> 20 | O11: ='Unit Mix'!D10 -> 200 | P11: ='Unit Mix'!E10 -> 16 | Q11: ='Unit Mix'!F10 -> 3200 | R11: ='Unit Mix'!G10 -> 175 | S11: ='Unit Mix'!H10 -> 2800 | T11: ='Unit Mix'!I10 -> 33600
B12: -Year 1 | C12: 0.8
B13: -Year 2 | C13: 0.85 | E13: Acquisition $/SF | F13: =F24/(C6+C8) -> 85.41084167 | L13: ='Unit Mix'!A12 -> Storage Total | P13: ='Unit Mix'!E12 -> 266 | Q13: ='Unit Mix'!F12 -> 33561 | S13: ='Unit Mix'!H12 -> 30120 | T13: ='Unit Mix'!I12 -> 361440
B14: -Year 3 | C14: 0.9 | E14: Future Sale $/SF | F14: =F25/(C6+C8) -> 161.0862183 | L14: ='Unit Mix'!A13 -> Grand Total | P14: ='Unit Mix'!E13 -> 266 | Q14: ='Unit Mix'!F13 -> 33561 | S14: ='Unit Mix'!H13 -> 30120 | T14: ='Unit Mix'!I13 -> 361440
B15: -Year 4 | C15: 0.95
B16: -Year 5 | C16: 0.95 | E16: Average Storage Unit Size | F16: =Q13/P13 -> 126.1691729
B17: Trailing Storage Potential Gross Rental Income | C17: =T13 -> 361440
B18: Trailing Rv/Boat/Parking Potential Gross Rental Income | C18: 0
B19: Operating Expense Inflationary Increases | C19: 0.02
B20: Management Fees as Percentage Total Revenue | C20: 0
B21: Capital Reserves Per Square Foot | C21: 0.1
B23: Acquisition & Disposition Assumptions | E23: Key Metrics
B24: Acquisition Cap Rate | C24: 0.07 | E24: Current Property Value | F24: ='Projected Cash Flows'!C44/Assumptions!C24 -> 2866473.257
B25: Future Sale Cap Rate | C25: 0.065 | E25: Projected Future Property Value | F25: =+'Projected Cash Flows'!H44/Assumptions!C25 -> 5406214.572
B26: Loan to Value | C26: 0.6 | E26: Loan Amount | F26: =+F24*C26 -> 1719883.954
B27: Loan Origination Fees | C27: 0.02 | E27: Loan Origination | F27: =+F26*C27 -> 34397.67909
B29: Financing Assumptions
B30: Interest Rate | C30: 0.055 | D30: One Year I/O | H30: Inputs | I30: 1
B31: Number Monthly Payments | C31: 300 | E31: 300 | H31: One Year I/0 = 1
B32: Loan Amount | C32: =F26 -> 1719883.954 | E32: =F26 -> 1719883.954 | H32: Fully Am = 2
B33: Future Value After Last Payment Made | C33: 0 | E33: 0
B34: When Payments Due (Assumes 1st Month) | C34: 1 | E34: 1
B35: Annual Loan Payments (PMT) | C35: =-PMT(C30/12,C31,C32,C33,C34)*12 -> 126160.8696 | E35: =E32*C30 -> 94593.61749
B36: Number Payments Made | C36: =IF(I30>1.9,60,IF(I30<1.9,48)) -> 48 | E36: 60
B37: Remaining Unpaid Loan Balance (CUMPRINC) | C37: =+C32+CUMPRINC(C30/12,C31,C32,1,C36,C34) -> 1569234.742 | E37: =E32 -> 1719883.954

Sheet Unit Mix
A2: Unit Type | B2: W | C2: L | D2: Unit SF | E2: # of Units | F2: Total RSF | G2: Rental Rate | H2: Monthly | I2: Annual
A3: Storage | B3: 5 | C3: 5 | D3: =B3*C3 -> 25 | E3: 1 | F3: =D3*E3 -> 25 | G3: 47 | H3: =E3*G3 -> 47 | I3: =H3*12 -> 564
A4: Storage | B4: 9 | C4: 6 | D4: =B4*C4 -> 54 | E4: 9 | F4: =D4*E4 -> 486 | G4: 63 | H4: =E4*G4 -> 567 | I4: =H4*12 -> 6804
A5: Storage | B5: 10 | C5: 6 | D5: 60 | E5: 57 | F5: 3420 | G5: 68 | H5: 3876 | I5: 46512
A6: Storage | B6: 10 | C6: 10 | D6: 100 | E6: 1 | F6: 100 | G6: 89 | H6: 89 | I6: 1068
A7: Storage | B7: 10 | C7: 12 | D7: 120 | E7: 69 | F7: 8280 | G7: 100 | H7: 6900 | I7: 82800 | K7: =G7/D7 -> 0.8333333333
A8: Storage | B8: 10 | C8: 15 | D8: 150 | E8: 3 | F8: 450 | G8: 147 | H8: 441 | I8: 5292 | K8: =G8/D8 -> 0.98
A9: Storage | B9: 8 | C9: 20 | D9: 160 | E9: 110 | F9: 17600 | G9: 140 | H9: 15400 | I9: 184800
A10: Storage | B10: 10 | C10: 20 | D10: 200 | E10: 16 | F10: 3200 | G10: 175 | H10: 2800 | I10: 33600
A12: Storage Total | E12: =SUM(E3:E10) -> 266 | F12: =SUM(F3:F10) -> 33561 | H12: =SUM(H3:H10) -> 30120 | I12: =SUM(I3:I10) -> 361440
A13: Grand Total | E13: =SUM(E3:E10) -> 266 | F13: =SUM(F3:F10) -> 33561 | H13: =SUM(H3:H10) -> 30120 | I13: =SUM(I3:I10) -> 361440

Sheet Rate Survey
A2: Everson Mini Storage
A3: 369 Everson Road, Everson, WA 98247
A4: Unit Size | D4: Type | H4: Website Rate | I4: PSF | J4: On-Site Rate | K4: PSF
A5: Pioneer Storage | D5: 7244 Everson Goshen Rd | E5: Everson | F5: WA | G5: 1.342
A6: 8 | B6: x | C6: 10 | D6: Drive Up | J6: 120 | K6: 1.5
A7: 8 | B7: x | C7: 20 | D7: Drive Up | J7: 195 | K7: 1.21875
A8: 12 | B8: x | C8: 15 | D8: Drive Up | J8: 215 | K8: 1.194444444
A10: Ahrens Storage | D10: 5977 Everson Goshen Rd | E10: Bellingham | F10: WA | G10: 4.1849
A11: 4 | B11: x | C11: 6 | D11: Inside | J11: 30 | K11: 1.25
A12: 6 | B12: x | C12: 12 | D12: Inside | J12: 70 | K12: 0.9722222222
A13: 9 | B13: x | C13: 12 | D13: Inside | J13: 105 | K13: 0.9722222222
A14: 8 | B14: x | C14: 16 | D14: Inside | J14: 120 | K14: 0.9375
A15: 12 | B15: x | C15: 15 | D15: Inside | J15: 170 | K15: 0.9444444444
A16: 10 | B16: x | C16: 20 | D16: Drive Up | J16: 175 | K16: 0.875
A18: J & H Storage | D18: 7022 Hannegan Road | E18: Lynden | F18: WA | G18: 4.2452
A19: 6 | B19: x | C19: 12 | D19: Drive Up | J19: 84 | K19: 1.166666667
A20: 8 | B20: x | C20: 12 | D20: Drive Up | J20: 105 | K20: 1.09375
A21: 8 | B21: x | C21: 16 | D21: Drive Up | J21: 126 | K21: 0.984375
A22: 12 | B22: x | C22: 12 | D22: Drive Up | J22: 141 | K22: 0.9791666667
A23: 10 | B23: x | C23: 20 | D23: Drive Up | J23: 180 | K23: 0.9
A25: Hinotes Corner Storage | D25: 841 Hinotes Court | E25: Lynden | F25: WA | G25: 4.515
A26: 5 | B26: x | C26: 10 | D26: Drive Up | J26: 68 | K26: 1.36
A27: 10 | B27: x | C27: 10 | D27: Drive Up | J27: 109 | K27: 1.09
A28: 10 | B28: x | C28: 15 | D28: Drive Up | J28: 143 | K28: 0.9533333333
A29: 10 | B29: x | C29: 20 | D29: Drive Up | J29: 179 | K29: 0.895
A30: 10 | B30: x | C30: 26 | D30: Drive Up | J30: 220 | K30: 0.8461538462
A31: 10 | B31: x | C31: 30 | D31: Drive Up | J31: 250 | K31: 0.8333333333
A32: 12 | B32: x | C32: 20 | D32: Drive Up | J32: 209 | K32: 0.8708333333
A33: 0 | D33: 0 | E33: 0 | F33: 0 | G33: 0
B34: x
B35: x
B36: x
B37: x
B38: x
B39: x
B40: x
B41: x
B42: x
B43: x
A45: 0 | D45: 0 | E45: 0 | F45: 0 | G45: 0
B46: x
B47: x
B48: x
B49: x
B50: x
B51: x
B52: x
B53: x
B54: x
B55: x
A57: 0 | D57: 0 | E57: 0 | F57: 0 | G57: 0
B58: x
B59: x
B60: x
B61: x
B62: x
B63: x
B64: x
B65: x
B66: x
B67: x
A69: 0 | D69: 0 | E69: 0 | F69: 0 | G69: 0
B70: x
B71: x
B72: x
B73: x
B74: x
B75: x
B76: x
B77: x
B78: x
B79: x
A81: 0 | D81: 0 | E81: 0 | F81: 0 | G81: 0
B82: x
B83: x
B84: x
B85: x
B86: x
B87: x
B88: x
B89: x
B90: x
B91: x
A93: 0 | D93: 0 | E93: 0 | F93: 0 | G93: 0
B94: x
B95: x
B96: x
B97: x
B98: x
B99: x
B100: x
B101: x
B102: x
B103: x
A105: Everson Mini Storage | D105: 369 Everson Road, Everson, WA 98247
A106: 8 | B106: x | C106: 20 | D106: Container | J106: 140 | K106: 0.875
D107: *Only larger size available currently

Sheet P&L

Sheet Rent Roll
A1: Rent Schedule
A2: Property = 321 Everson Road
A3: As Of Month = 08/2025
A4: Tenant | B4: Unit | C4: Unit Type | D4: Date From | E4: Amount
A5: 321 Everson Road | H5: Unit Type
A6: Kristi Gates | B6: A01 | C6: 10X6 Self Storage Unit | D6: 2021-07-01 | E6: 50
A7: Collin Wallace | B7: A02 | C7: 10X6 Self Storage Unit | D7: 2025-07-15 | E7: 65
A8: Joe Ligoski | B8: A03 | C8: 10X6 Self Storage Unit | D8: 2014-10-20 | E8: 50
A9: Leinani swanaset | B9: A04 | C9: 10X6 Self Storage Unit | D9: 2021-10-13 | E9: 55
A10: Nydia Mata | B10: A05 | C10: 10X6 Self Storage Unit | D10: 2022-10-01 | E10: 65
A11: Antonia R Gonzolez | B11: A06 | C11: 10X6 Self Storage Unit | D11: 2024-02-22 | E11: 65
A12: Brittany Dobbs | B12: A07 | C12: 10X6 Self Storage Unit | D12: 2024-07-29 | E12: 65
A13: Juan Celestino | B13: A09 | C13: 10X6 Self Storage Unit | D13: 2020-08-12 | E13: 55
A14: Kevin Alcaraz | B14: A10 | C14: 10X6 Self Storage Unit | D14: 2023-05-12 | E14: 55
A15: Barbara Williams | B15: A11 | C15: 10X6 Self Storage Unit | D15: 2022-09-01 | E15: 65
A16: Coby Sedgwick | B16: A13 | C16: 10X6 Self Storage Unit | D16: 2017-06-01 | E16: 55
A17: Al Smith | B17: A14 | C17: 10X6 Self Storage Unit | D17: 2021-09-04 | E17: 55
A18: Tina Jones | B18: A15 | C18: 10X6 Self Storage Unit | D18: 2019-09-13 | E18: 55
A19: Ashley Gorter | B19: A16 | C19: 10X6 Self Storage Unit | D19: 2023-12-01 | E19: 65
A20: Wendy Cosgrove | B20: A17 | C20: 10X6 Self Storage Unit | D20: 2021-08-27 | E20: 55
A21: Tina Jones | B21: A19 | C21: 10X6 Self Storage Unit | D21: 2023-01-01 | E21: 60
A22: Darren Katamay | B22: A20 | C22: 10X6 Self Storage Unit | D22: 2025-05-31 | E22: 65
A23: Zane Sexton | B23: AA01 | C23: 10X6 Self Storage Unit | D23: 2020-11-01 | E23: 50
A24: Nooksack Valley Girls Youth Sports . | B24: AA02 | C24: 10X6 Self Storage Unit | D24: 2018-04-01 | E24: 55
A25: Rick Coglianese | B25: AA03 | C25: 10X6 Self Storage Unit | D25: 2016-01-30 | E25: 50
A26: Edward Saenz | B26: AA04 | C26: 10X6 Self Storage Unit | D26: 2021-09-02 | E26: 55
A27: Erin Ragland | B27: AA05 | C27: 10X6 Self Storage Unit | D27: 2014-10-20 | E27: 45
A28: Holly Layport | B28: AA06 | C28: 10X6 Self Storage Unit | D28: 2024-07-24 | E28: 65
A29: Genara Jeronimo Perez | B29: AA07 | C29: 10X6 Self Storage Unit | D29: 2025-03-27 | E29: 65
A30: Susan Oakes | B30: AA08 | C30: 10X12 Self Storage Unit | D30: 2017-08-01 | E30: 85
A31: Clara Wopat | B31: AA09 | C31: 10X12 Self Storage Unit | D31: 2024-10-08 | E31: 100
A32: George Adams | B32: AA10 | C32: 10X12 Self Storage Unit | D32: 2015-07-01 | E32: 75
A33: Sara Kok | B33: AA11 | C33: 10X12 Self Storage Unit | D33: 2020-07-14 | E33: 85
A34: William Booher | B34: B01 | C34: 10X12 Self Storage Unit | D34: 2022-02-12 | E34: 85
A35: Anthony Aure | B35: B02 | C35: 10X12 Self Storage Unit | D35: 2024-01-01 | E35: 100
A36: Amy Ackerson | B36: B03 | C36: 10X12 Self Storage Unit | D36: 2025-07-30 | E36: 100
A37: Gerald Morse | B37: B05 | C37: 10X12 Self Storage Unit | D37: 2024-09-01 | E37: 100
A38: Pamela Davis | B38: B06 | C38: 10X12 Self Storage Unit | D38: 2021-09-04 | E38: 85
A39: Antonio Swanaset | B39: B08 | C39: 10X6 Self Storage Unit | D39: 2023-09-01 | E39: 65
A40: Dwayne Bayes | B40: B09 | C40: 10X6 Self Storage Unit | D40: 2023-12-01 | E40: 65
A41: Jennie Brooks | B41: B10 | C41: 10X6 Self Storage Unit | D41: 2025-05-20 | E41: 65
A42: Sheree Smith | B42: B11 | C42: 10X12 Self Storage Unit | D42: 2023-10-01 | E42: 85
A43: Nancy Jellison | B43: B12 | C43: 10X12 Self Storage Unit | D43: 2024-04-26 | E43: 100
A44: Wilbert Devries | B44: B13 | C44: 10X12 Self Storage Unit | D44: 2022-12-01 | E44: 100
A45: Randy Jones | B45: B15 | C45: 10X12 Self Storage Unit | D45: 2024-04-23 | E45: 100
A46: Dan Miller | B46: B16 | C46: 10X12 Self Storage Unit | D46: 2024-08-19 | E46: 100
A47: Cynthia Ross | B47: B17 | C47: 10X6 Self Storage Unit | D47: 2019-07-01 | E47: 55
A48: Kathy Libbert | B48: B18 | C48: 10X6 Self Storage Unit | D48: 2025-04-24 | E48: 65
A49: Jennifer Schoonover | B49: B19 | C49: 10X6 Self Storage Unit | D49: 2020-07-23 | E49: 55
A50: Shari Klein | B50: B20 | C50: 10X6 Self Storage Unit | D50: 2023-12-01 | E50: 65
A51: Rosette Harlan | B51: C01 | C51: 10X12 Self Storage Unit | D51: 2024-09-01 | E51: 100
A52: Timothy Ollinger | B52: C02 | C52: 10X12 Self Storage Unit | D52: 2020-01-31 | E52: 85
A53: Sandra Renfro | B53: C03 | C53: 10X12 Self Storage Unit | D53: 2023-01-01 | E53: 100
A54: Melissa Waters | B54: C04 | C54: 10X12 Self Storage Unit | D54: 2021-08-07 | E54: 85
A55: Tammie Seigfried | B55: C05 | C55: 10X12 Self Storage Unit | D55: 2017-08-01 | E55: 85
A56: Travis Sledge | B56: C06 | C56: 10X12 Self Storage Unit | D56: 2022-09-01 | E56: 100
A57: Deja Fink | B57: C07 | C57: 10X12 Self Storage Unit | D57: 2020-06-01 | E57: 85
A58: Boyd Marsing | B58: C08 | C58: 10X12 Self Storage Unit | D58: 2023-12-01 | E58: 100
A59: Brian Postma | B59: C09 | C59: 10X12 Self Storage Unit | D59: 2023-09-01 | E59: 85
A60: Sarah Cline | B60: C10 | C60: 10X12 Self Storage Unit | D60: 2024-01-01 | E60: 95
A61: lolita swanaset | B61: C11 | C61: 10X12 Self Storage Unit | D61: 2023-09-01 | E61: 85
A62: Patricia Steagall | B62: C12 | C62: 10X12 Self Storage Unit | D62: 2024-06-01 | E62: 100
A63: Tracy Pederson | B63: C13 | C63: 10X12 Self Storage Unit | D63: 2017-09-01 | E63: 85
A64: Stacey Brown | B64: C14 | C64: 10X12 Self Storage Unit | D64: 2024-06-01 | E64: 100
A65: April Dawn | B65: C16 | C65: 10X12 Self Storage Unit | D65: 2017-08-01 | E65: 85
A66: Tyler Burllingame | B66: C17 | C66: 10X12 Self Storage Unit | D66: 2024-07-01 | E66: 100
A67: Debra Kouda | B67: C18 | C67: 10X12 Self Storage Unit | D67: 2023-06-02 | E67: 100
A68: Robert Foster | B68: C19 | C68: 10X12 Self Storage Unit | D68: 2024-06-01 | E68: 100
A69: Teri Kurtz | B69: C20 | C69: 10X12 Self Storage Unit | D69: 2024-06-01 | E69: 100
A70: Wacey Riggs | B70: D01 | C70: 10X12 Self Storage Unit | D70: 2025-07-01 | E70: 100
A71: Lance Hansen | B71: D02 | C71: 10X12 Self Storage Unit | D71: 2025-07-01 | E71: 100
A72: Sarah Judy | B72: D03 | C72: 10X12 Self Storage Unit | D72: 2024-08-01 | E72: 100
A73: Shannon Morgan | B73: D04 | C73: 10X12 Self Storage Unit | D73: 2020-10-16 | E73: 85
A74: elaina Abate | B74: D05 | C74: 10X12 Self Storage Unit | D74: 2019-05-14 | E74: 85
A75: Louis Gierke | B75: D06 | C75: 10X12 Self Storage Unit | D75: 2024-07-08 | E75: 85
A76: Mathew Werner | B76: D07 | C76: 10X12 Self Storage Unit | D76: 2024-09-01 | E76: 100
A77: katie Weidkamp | B77: D08 | C77: 10X12 Self Storage Unit | D77: 2023-04-25 | E77: 85
A78: Judy Larson | B78: D09 | C78: 10X12 Self Storage Unit | D78: 2022-09-28 | E78: 85
A79: Christopher Creech | B79: D10 | C79: 10X12 Self Storage Unit | D79: 2024-03-20 | E79: 100
A80: Sheree Smith | B80: D11 | C80: 10X12 Self Storage Unit | D80: 2023-10-01 | E80: 85
A81: Martin Zargoza | B81: D12 | C81: 10X12 Self Storage Unit | D81: 2016-01-11 | E81: 75
A82: Oleg Slesarchy | B82: D13 | C82: 10X12 Self Storage Unit | D82: 2024-02-27 | E82: 100
A83: Jim Shoaf | B83: D14 | C83: 10X12 Self Storage Unit | D83: 2019-03-01 | E83: 85
A84: Arlen Riesau | B84: D15 | C84: 10X12 Self Storage Unit | D84: 2025-07-16 | E84: 100
A85: Floyd Euper | B85: D16 | C85: 10X12 Self Storage Unit | D85: 2024-08-01 | E85: 100
A86: Ipolito Perez Perez | B86: D17 | C86: 10X6 Self Storage Unit | D86: 2019-08-31 | E86: 55
A87: Jim Shoaf | B87: D18 | C87: 10X6 Self Storage Unit | D87: 2019-04-09 | E87: 55
A88: Link Anderson | B88: D19 | C88: 10X6 Self Storage Unit | D88: 2022-04-01 | E88: 65
A89: Danielle McClintock | B89: D20 | C89: 10X6 Self Storage Unit | D89: 2023-04-01 | E89: 65
A90: Rebekah Robertson | B90: D21 | C90: 10X6 Self Storage Unit | D90: 2022-06-01 | E90: 65
A91: Lorrainne Vandrmeulen | B91: D22 | C91: 10X6 Self Storage Unit | D91: 2022-03-01 | E91: 60
A92: Shannon Morgan | B92: D23 | C92: 10X6 Self Storage Unit | D92: 2024-11-23 | E92: 65
A93: James Kestyn | B93: D24 | C93: 10X6 Self Storage Unit | D93: 2025-04-10 | E93: 65
A94: Maria Sefe | B94: E01 | C94: 9X6 Self Storage Unit | D94: 2019-08-21 | E94: 50
A95: Stacy Cashillo | B95: E02 | C95: 9X6 Self Storage Unit | D95: 2024-04-18 | E95: 60
A96: Phillip Kornelis | B96: E03 | C96: 9X6 Self Storage Unit | D96: 2023-03-01 | E96: 45
A97: Daniel Ramierz | B97: E04 | C97: 9X6 Self Storage Unit | D97: 2024-05-01 | E97: 60
A98: Skylar Tylor | B98: E05 | C98: 9X6 Self Storage Unit | D98: 2025-07-16 | E98: 60
A99: Noah Rawls | B99: E06 | C99: 9X6 Self Storage Unit | D99: 2024-06-11 | E99: 60
A100: Eveone Ames-Pederson | B100: E07 | C100: 9X6 Self Storage Unit | D100: 2025-07-22 | E100: 60
A101: Alejandro Zavala Jr | B101: E09 | C101: 9X6 Self Storage Unit | D101: 2024-09-27 | E101: 60
A102: Dave Ferris | B102: E10 | C102: 10X6 Self Storage Unit | D102: 2018-06-01 | E102: 55
A103: David Hay | B103: E11 | C103: 10X6 Self Storage Unit | D103: 2016-01-04 | E103: 50
A104: David Gunderson | B104: E12 | C104: 10X6 Self Storage Unit | D104: 2022-03-01 | E104: 60
A105: Joel Carlson | B105: E14 | C105: 10X6 Self Storage Unit | D105: 2017-10-01 | E105: 55
A106: Paul VanderHoek | B106: E16 | C106: 10X15 Self Storage Unit | D106: 2024-07-24 | E106: 140
A107: Paul VanderHoek | B107: E17 | C107: 10X15 Self Storage Unit | D107: 2024-07-24 | E107: 140
A108: Angela Eshurs | B108: E18 | C108: 10X15 Self Storage Unit | D108: 2017-12-01 | E108: 120
A109: Kelli Thomas | B109: F01 | C109: 10X12 Self Storage Unit | D109: 2025-07-29 | E109: 100
A110: Baraka Grien | B110: F02 | C110: 10X12 Self Storage Unit | D110: 2020-11-24 | E110: 85
A111: Deborah Myhre | B111: F03 | C111: 10X12 Self Storage Unit | D111: 2021-09-07 | E111: 85
A112: Marilyn Hughes | B112: F04 | C112: 10X12 Self Storage Unit | D112: 2023-09-25 | E112: 100
A113: Ruben Reyes Jr. | B113: F06 | C113: 5X5 Self Storage Unit | D113: 2020-06-10 | E113: 45
A114: Paula Perfilio | B114: F07 | C114: 10X6 Self Storage Unit | D114: 2019-08-01 | E114: 55
A115: Brian Gates | B115: F08 | C115: 10X6 Self Storage Unit | D115: 2023-06-15 | E115: 65
A116: Mike Schanlz | B116: F09 | C116: 10X6 Self Storage Unit | D116: 2020-07-08 | E116: 55
A117: Beverly Pepenoe | B117: F10 | C117: 10X6 Self Storage Unit | D117: 2019-08-01 | E117: 55
A118: Angela Cooper | B118: F11 | C118: 10X6 Self Storage Unit | D118: 2025-01-04 | E118: 65
A119: Belsa Martinez | B119: F12 | C119: 10X6 Self Storage Unit | D119: 2025-08-05 | E119: 65
A120: Gene Pilon | B120: F13 | C120: 10X6 Self Storage Unit | D120: 2023-09-01 | E120: 60
A121: Pauline Plaster | B121: G01 | C121: 10X12 Self Storage Unit | D121: 2025-01-16 | E121: 100
A122: Andy Herrera | B122: G02 | C122: 10X12 Self Storage Unit | D122: 2023-06-01 | E122: 100
A123: Nick Snyders | B123: G03 | C123: 10X12 Self Storage Unit | D123: 2015-07-28 | E123: 75
A124: Gene Pilon | B124: G05 | C124: 10X12 Self Storage Unit | D124: 2023-09-01 | E124: 85
A125: Richard Goodwin | B125: G06 | C125: 10X12 Self Storage Unit | D125: 2023-07-01 | E125: 100
A126: Alicia Wilkens | B126: G07 | C126: 10X12 Self Storage Unit | D126: 2014-10-20 | E126: 50
A127: Champaghn Villalobos | B127: G08 | C127: 10X10 Self Storage Unit | D127: 2024-06-13 | E127: 85
A128: Randy Relethford | B128: G10 | C128: 10X12 Self Storage Unit | D128: 2024-05-11 | E128: 100
A129: Sharon Kukhahn | B129: G11 | C129: 10X12 Self Storage Unit | D129: 2025-04-01 | E129: 100
A130: Plagerman, Larry . | B130: G12 | C130: 10X12 Self Storage Unit | D130: 2017-10-01 | E130: 80
A131: Rachel Carlson | B131: G13 | C131: 10X12 Self Storage Unit | D131: 2025-07-10 | E131: 100
A132: Gerald Morse | B132: G14 | C132: 10X12 Self Storage Unit | D132: 2020-11-04 | E132: 85
A133: Jonni Oxford | B133: G15 | C133: 10X20 Self Storage Unit | D133: 2024-05-08 | E133: 160
A134: Sengnin Sisouk | B134: G16 | C134: 10X20 Self Storage Unit | D134: 2025-05-01 | E134: 150
A135: David West | B135: G17 | C135: 10X20 Self Storage Unit | D135: 2021-12-01 | E135: 150
A136: Randy Relethford | B136: G18 | C136: 10X20 Self Storage Unit | D136: 2024-01-01 | E136: 175
A137: Riley Wood | B137: G19 | C137: 10X20 Self Storage Unit | D137: 2024-12-31 | E137: 165
A138: Colin Fischer | B138: G20 | C138: 10X20 Self Storage Unit | D138: 2023-04-16 | E138: 150
A139: Jennifer Porter | B139: H02 | C139: 8X20 Container Unit | D139: 2018-07-01 | E139: 120
A140: Washington Trails Assoc. | B140: H07 | C140: 8X20 Container Unit | D140: 2022-07-01 | E140: 100
A141: Theresa Cain | B141: H08 | C141: 8X20 Container Unit | D141: 2022-02-01 | E141: 120
A142: Scott Fuller | B142: H12 | C142: 8X20 Container Unit | D142: 2020-10-05 | E142: 100
A143: Simon Media | B143: H14 | C143: 8X20 Container Unit | D143: 2015-08-05 | E143: 85
A144: Cheryl Kahle | B144: H15 | C144: 8X20 Container Unit | D144: 2017-08-01 | E144: 100
A145: Maggie Mullins | B145: H16 | C145: 8X20 Container Unit | D145: 2022-06-01 | E145: 130
A146: Kelsey Tolsma | B146: H17 | C146: 8X20 Container Unit | D146: 2021-07-09 | E146: 100
A147: Louis Lacariere | B147: H18 | C147: 8X20 Container Unit | D147: 2019-10-01 | E147: 120
A148: Joel Ware | B148: H19 | C148: 8X20 Container Unit | D148: 2020-10-30 | E148: 100
A149: Kelly Bourassa | B149: H20 | C149: 8X20 Container Unit | D149: 2021-09-15 | E149: 100
A150: Alan Jay Freysinger | B150: H21 | C150: 8X20 Container Unit | D150: 2022-07-02 | E150: 130
A151: Tyson Perry | B151: H23 | C151: 8X20 Container Unit | D151: 2022-05-01 | E151: 130
A152: George Adams | B152: H25 | C152: 8X20 Container Unit | D152: 2022-06-01 | E152: 150
A153: Erin Ragland | B153: H26 | C153: 8X20 Container Unit | D153: 2023-09-01 | E153: 82.95
A154: Margaret Bales | B154: H29 | C154: 8X20 Container Unit | D154: 2018-12-01 | E154: 100
A155: Johnathan Gunderson | B155: H32 | C155: 8X20 Container Unit | D155: 2022-11-01 | E155: 135
A156: Al Johnnie | B156: H33 | C156: 8X20 Container Unit | D156: 2014-10-20 | E156: 75
A157: Betsy Lott | B157: H35 | C157: 8X20 Container Unit | D157: 2021-12-01 | E157: 85
A158: Nick Byma | B158: H36 | C158: 8X20 Container Unit | D158: 2023-07-28 | E158: 130
A159: Kristen Winchester | B159: H37 | C159: 8X20 Container Unit | D159: 2022-10-01 | E159: 150
A160: Theresa Cain | B160: H38 | C160: 8X20 Container Unit | D160: 2021-07-01 | E160: 120
A161: Tristan Jansen | B161: H39 | C161: 8X20 Container Unit | D161: 2023-12-01 | E161: 130
A162: Mike Archambolt | B162: H44 | C162: 8X20 Container Unit | D162: 2021-06-11 | E162: 100
A163: David Gunderson | B163: H45 | C163: 8X20 Container Unit | D163: 2022-02-28 | E163: 100
A164: Kai Janson | B164: H47 | C164: 8X20 Container Unit | D164: 2023-12-01 | E164: 110
A165: Chris Love | B165: H48 | C165: 8X20 Container Unit | D165: 2023-09-01 | E165: 140
A166: Anthony Gonzales | B166: H50 | C166: 8X20 Container Unit | D166: 2020-11-01 | E166: 120
A167: Bo Biehle | B167: H54 | C167: 8X20 Container Unit | D167: 2014-10-20 | E167: 85
A168: Leanna Myers | B168: H56 | C168: 8X20 Container Unit | D168: 2021-12-02 | E168: 120
A169: Richard Nyens | B169: H58 | C169: 8X20 Container Unit | D169: 2024-10-05 | E169: 140
A170: Al Johnnie | B170: H61 | C170: 8X20 Container Unit | D170: 2023-09-22 | E170: 130
A171: Kai Jansen | B171: H62 | C171: 8X20 Container Unit | D171: 2023-12-01 | E171: 110
A172: Gilbert Gunderson | B172: H63 | C172: 8X20 Container Unit | D172: 2022-10-01 | E172: 130
A173: Thelma Lewis | B173: H65 | C173: 8X20 Container Unit | D173: 2023-04-26 | E173: 100
A174: Corey Jimmy | B174: H66 | C174: 8X20 Container Unit | D174: 2014-10-20 | E174: 75
A175: Rita Rudolph | B175: H68 | C175: 8X20 Container Unit | D175: 2015-07-01 | E175: 110
A176: Melody Coleman | B176: H70 | C176: 8X20 Container Unit | D176: 2023-09-01 | E176: 100
A177: Laura Love | B177: H72 | C177: 8X20 Container Unit | D177: 2018-09-01 | E177: 100
A178: Emily Elsbree | B178: H73 | C178: 8X20 Container Unit | D178: 2021-07-23 | E178: 100
A179: Sean Mcinnis | B179: H75 | C179: 8X20 Container Unit | D179: 2022-09-01 | E179: 130
A180: Joseph Ivie | B180: H77 | C180: 8X20 Container Unit | D180: 2025-05-20 | E180: 130
A181: Daniel Richardson | B181: H79 | C181: 8X20 Container Unit | D181: 2018-01-01 | E181: 100
A182: Lillian Litts | B182: H81 | C182: 8X20 Container Unit | D182: 2022-07-01 | E182: 150
A183: Dillon Graves | B183: H82 | C183: 8X20 Container Unit | D183: 2022-10-01 | E183: 120
A184: Kaylee Morby | B184: H83 | C184: 8X20 Container Unit | D184: 2023-07-20 | E184: 140
A185: Simon Media | B185: H85 | C185: 8X20 Container Unit | D185: 2020-06-22 | E185: 120
A186: Sean Mcinnis | B186: H86 | C186: 8X20 Container Unit | D186: 2023-09-21 | E186: 130
A187: Mike Berry | B187: H87 | C187: 8X20 Container Unit | D187: 2022-07-01 | E187: 150
A188: Erick Avrand | B188: H88 | C188: 8X20 Container Unit | D188: 2024-09-01 | E188: 105
A189: Arthur Patterson | B189: H89 | C189: 8X20 Container Unit | D189: 2018-08-01 | E189: 120
A190: Deborah Arntzan | B190: H90 | C190: 8X20 Container Unit | D190: 2017-01-25 | E190: 85
A191: Dillon Graves | B191: H93 | C191: 8X20 Container Unit | D191: 2024-12-18 | E191: 140
A192: Maria Monti | B192: H95 | C192: 8X20 Container Unit | D192: 2023-06-29 | E192: 130
A193: Dick Dykstra | B193: H96 | C193: 8X20 Container Unit | D193: 2022-10-01 | E193: 150
A194: Larry Neely Jr. | B194: I-01 | C194: 10X20 Self Storage Unit | D194: 2024-03-27 | E194: 160
A195: Steven Robinson | B195: I-02 | C195: 10X20 Storage | D195: 2024-05-07 | E195: 160
A196: John Murray | B196: I-03 | C196: 10X20 Storage | D196: 2021-07-01 | E196: 160
A197: Brook Stremler | B197: I-04 | C197: 10X20 Storage | D197: 2022-12-01 | E197: 175
A198: Brianne Nyens | B198: I-05 | C198: 10X20 Storage | D198: 2017-11-01 | E198: 140
A199: Daniel Millspaugh | B199: I-06 | C199: 10X20 Storage | D199: 2017-09-01 | E199: 140
A200: Ryan Ingalls | B200: I-07 | C200: 10X20 Storage | D200: 2025-05-03 | E200: 150
... 14 more rows
